[Event "30th NATO Chess-ch 2019"]
[Site "Berlin"]
[Date "2019.09.19"]
[Round "5.24"]
[White "Nikomanis, Andreas"]
[Black "Drenthen, Arjan"]
[Result "1/2-1/2"]
[ECO "C42"]
[WhiteElo "2053"]
[BlackElo "1917"]
[Annotator "NA"]
[PlyCount "59"]
[EventDate "2019.09.16"]
[EventType "swiss"]
[EventCountry "GER"]
[SourceTitle "playchess.com"]
[Source "ChessBase"]
[SourceQuality "1"]
[TimeControl "40/7200:1800"]

1. e4 {[%emt 1:59:53]} e5 {[%emt 1:59:54]} 2. Nf3 {[%emt 1:59:41]} Nf6 {[%emt 1:59:50]} 3. Nxe5 {[%emt 1:59:35]} d6 {[%emt 1:59:35]} 4. Nf3 {[%emt 1:59:30]} Nxe4 {[%emt 1:59:42]} 5. d4 {[%emt 1:59:23]} d5 {[%emt 1:59:23]} 6. Bd3 {[%emt 1:59:19]} Nc6 {[%emt 1:59:32]} 7. O-O {[%emt 1:59:07]} Be7 {[%emt 1:59:29]} 8. c4 {[%emt 1:58:47]} Nb4 $11 9. Be2 {[%emt 1:59:24]} O-O {[%emt 1:58:38]} 10. Nc3 {[%emt 1:56:23]} Bf5 {[%emt 1:57:27]} 11. a3 {[%emt 1:54:47]} Nxc3 {[%emt 1:54:47]} 12. bxc3 {[%emt 1:54:41]} Nc6 {[%emt 1:56:50]} 13. Re1 {[%emt 1:56:50]} Re8 {[%emt 1:53:58]} 14. Bf4 {[%emt 1:56:45]} Rc8 {[%emt 1:54:32]} 15. cxd5 {[%emt 1:43:36]} Qxd5 {[%emt 1:54:19]} 16. Nd2 {[%emt 1:54:19]} Bf6 {[%emt 1:48:10]} 17. Bf3 {[%emt 1:48:10]} Rxe1+ 18. Qxe1 {[%emt 1:45:56]} Qd7 {[%emt 1:45:42]} 19. Ne4 {[%emt 1:45:42]} Bxe4 {[%emt 1:38:12]} 20. Qxe4 {[%emt 1:32:01]} Re8 {[%emt 1:35:29]} 21. Qd3 {[%emt 1:29:00]} g6 {[%emt 1:15:55]} 22. h3 {[%emt 1:19:57]} Na5 {[%emt 1:19:57]} 23. Rb1 {[%emt 1:11:09]} c6 {[%emt 1:08:48]} 24. a4 {[%emt 1:10:06]} Qe6 {[%emt 1:10:06]} 25. c4 {[%emt 0:59:19]} b6 {[%emt 0:50:50]} 26. Rc1 {[%emt 0:50:50]} Qd7 {[%emt 0:55:20]} 27. Be3 {[%emt 0:53:11]} c5 {[%emt 0:53:11]} 28. d5 {[%emt 0:53:05]} Qxa4 {[%emt 0:36:19]} 29. d6 {[%emt 0:40:48]} Rd8 {[%emt 0:40:48]} 30. Bf4 {[%emt 0:33:54]} 1/2-1/2

[Event "30th NATO Chess-ch 2019"]
[Site "Berlin"]
[Date "2019.09.19"]
[Round "5.26"]
[White "Glibert, Stephane"]
[Black "Fichtner, Ewald"]
[Result "0-1"]
[ECO "B11"]
[WhiteElo "1865"]
[BlackElo "2046"]
[Annotator "NA"]
[PlyCount "62"]
[EventDate "2019.09.16"]
[EventType "swiss"]
[EventCountry "GER"]
[SourceTitle "playchess.com"]
[Source "ChessBase"]
[SourceQuality "1"]
[TimeControl "40/7200:1800"]

1. e4 {[%emt 1:59:56]} c6 {[%emt 1:59:56]} 2. Nf3 {[%emt 1:59:14]} d5 {[%emt 1:59:47]} 3. Nc3 {[%emt 1:58:44]} Bg4 {[%emt 1:59:41]} 4. h3 {[%emt 1:59:40]} Bxf3 {[%emt 1:59:35]} 5. Qxf3 {[%emt 1:56:41]} e6 {[%emt 1:59:29]} 6. b3 {[%emt 1:38:52]} Nf6 {[%emt 1:57:40]} 7. e5 {[%emt 1:30:14]} Nfd7 {[%emt 1:57:18]} 8. Qg3 {[%emt 1:29:08]} a6 {[%emt 1:29:08]} 9. f4 {[%emt 1:51:16]} g6 {[%emt 1:18:56]} 10. Be2 {[%emt 1:09:30]} c5 {[%emt 1:09:30]} 11. O-O {[%emt 0:55:56]} Nc6 {[%emt 0:55:56]} 12. Bb2 {[%emt 0:55:24]} Be7 {[%emt 1:44:43]} 13. Qf2 {[%emt 0:54:20]} h5 {[%emt 0:54:20]} 14. Nxd5 {[%emt 0:51:10]} exd5 {[%emt 0:51:10]} 15. e6 {[%emt 0:50:54]} Nf6 {[%emt 1:38:13]} 16. exf7+ {[%emt 0:48:08]} Kxf7 {[%emt 1:35:38]} 17. f5 {[%emt 0:45:30]} Qd6 {[%emt 1:08:27]} 18. fxg6+ {[%emt 1:08:27]} Kg7 {[%emt 1:06:41]} 19. g4 {[%emt 0:34:14]} hxg4 {[%emt 1:05:56]} 20. Bxg4 {[%emt 0:18:53]} d4 {[%emt 1:04:38]} 21. Rae1 {[%emt 0:15:10]} Raf8 {[%emt 1:01:23]} 22. Bf5 {[%emt 0:09:38]} Nh5 {[%emt 0:56:07]} 23. Kg2 {[%emt 0:05:18]} Rf6 {[%emt 0:55:18]} 24. c3 {[%emt 0:04:16]} Rhf8 {[%emt 0:54:54]} 25. cxd4 {[%emt 0:03:42]} cxd4 {[%emt 0:49:43]} 26. Bxd4 {[%emt 0:02:46]} Nxd4 {[%emt 0:47:39]} 27. Rxe7+ {[%emt 0:02:42]} Qxe7 {[%emt 0:47:02]} 28. Qxd4 {[%emt 0:02:40]} Qd6 {[%emt 0:46:29]} 29. Qc3 {[%emt 0:02:05]} Qc6+ {[%emt 0:46:12]} 30. Qxc6 {[%emt 0:01:35]} bxc6 {[%emt 0:45:41]} 31. Bd3 {[%emt 0:01:30]} Nf4+ {[%emt 0:45:26]} 0-1

[Event "30th NATO Chess-ch 2019"]
[Site "Berlin"]
[Date "2019.09.19"]
[Round "5.27"]
[White "Nielsen, Jan Mose"]
[Black "Voroblievas, Arturas"]
[Result "1/2-1/2"]
[ECO "D45"]
[WhiteElo "2044"]
[BlackElo "1762"]
[Annotator "NA"]
[PlyCount "81"]
[EventDate "2019.09.16"]
[EventType "swiss"]
[EventCountry "GER"]
[SourceTitle "playchess.com"]
[Source "ChessBase"]
[SourceQuality "1"]
[TimeControl "40/7200:1800"]

1. d4 {[%emt 1:59:22]} d5 {[%emt 1:59:51]} 2. Nf3 {[%emt 1:59:51]} Nf6 {[%emt 1:59:39]} 3. c4 {[%emt 1:59:39]} c6 {[%emt 1:59:23]} 4. Nc3 {[%emt 1:59:23]} e6 {[%emt 1:58:41]} 5. e3 {[%emt 1:51:17]} Nbd7 {[%emt 1:57:00]} 6. b3 {[%emt 1:50:02]} Bb4 {[%emt 1:55:11]} 7. Qc2 {[%emt 1:49:35]} O-O {[%emt 1:49:18]} 8. Bb2 {[%emt 1:49:18]} a5 {[%emt 1:48:57]} 9. a3 {[%emt 1:48:57]} Bxc3+ {[%emt 1:43:05]} 10. Bxc3 {[%emt 1:46:34]} Ne4 {[%emt 1:42:58]} 11. Nd2 {[%emt 1:45:25]} Nxc3 {[%emt 1:42:16]} 12. Qxc3 {[%emt 1:45:18]} Qe7 {[%emt 1:34:48]} 13. Nf3 {[%emt 1:42:24]} c5 {[%emt 1:42:24]} 14. cxd5 {[%emt 1:41:30]} exd5 {[%emt 1:41:30]} 15. Be2 {[%emt 1:41:12]} b6 {[%emt 1:41:12]} 16. O-O {[%emt 1:38:31]} Nf6 {[%emt 1:23:20]} 17. Rfd1 {[%emt 1:35:00]} Bg4 {[%emt 1:18:57]} 18. Qb2 {[%emt 1:31:25]} Rac8 {[%emt 1:31:25]} 19. h3 {[%emt 1:29:32]} Bh5 {[%emt 9:30:16]} 20. Rac1 {[%emt 1:14:45]} Rfd8 {[%emt 1:28:41]} 21. a4 {[%emt 1:26:46]} h6 {[%emt 1:10:41]} 22. Kf1 {[%emt 1:26:41]} Ne4 {[%emt 1:09:21]} 23. dxc5 {[%emt 1:22:31]} bxc5 {[%emt 0:59:49]} 24. Qe5 {[%emt 1:20:23]} Qxe5 {[%emt 0:58:12]} 25. Nxe5 {[%emt 1:20:17]} Bxe2+ {[%emt 0:57:22]} 26. Kxe2 {[%emt 1:20:11]} d4 {[%emt 1:20:11]} 27. exd4 {[%emt 1:19:21]} Re8 {[%emt 1:19:21]} 28. Kf1 {[%emt 1:17:18]} Rb8 {[%emt 1:17:18]} 29. f3 {[%emt 0:38:50]} Ng3+ {[%emt 0:28:54]} 30. Kf2 {[%emt 1:03:51]} cxd4 31. Nd7 {[%emt 0:58:22]} Ne2 {[%emt 0:27:52]} 32. Rc2 {[%emt 0:55:11]} Nc3 {[%emt 0:23:24]} 33. Rxd4 {[%emt 0:54:19]} Rxb3 {[%emt 0:54:19]} 34. Rc4 {[%emt 0:46:16]} Nd1+ {[%emt 0:46:16]} 35. Kg3 {[%emt 0:46:10]} Ne3 {[%emt 0:46:10]} 36. R2c3 {[%emt 0:45:30]} Rb2 {[%emt 0:19:31]} 37. Rxe3 {[%emt 0:44:28]} Rxe3 {[%emt 0:19:05]} 38. Rc8+ {[%emt 0:44:25]} Kh7 {[%emt 0:18:50]} 39. Nf8+ {[%emt 0:44:23]} Kg8 {[%emt 0:44:23]} 40. Ne6+ {[%emt 0:44:16]} Kh7 41. Nf8+ {[%emt 0:44:13]} 1/2-1/2

[Event "30th NATO Chess-ch 2019"]
[Site "Berlin"]
[Date "2019.09.19"]
[Round "5.28"]
[White "Fielding, Michael"]
[Black "Schott, Guido"]
[Result "1/2-1/2"]
[ECO "B07"]
[WhiteElo "1760"]
[BlackElo "2043"]
[Annotator "NA"]
[PlyCount "49"]
[EventDate "2019.09.16"]
[EventType "swiss"]
[EventCountry "GER"]
[SourceTitle "playchess.com"]
[Source "ChessBase"]
[SourceQuality "1"]
[TimeControl "40/7200:1800"]

1. e4 {[%emt 1:59:45]} d6 {[%emt 1:59:45]} 2. d4 {[%emt 1:58:20]} Nf6 {[%emt 1:59:36]} 3. Nc3 {[%emt 1:58:01]} c6 {[%emt 1:59:23]} 4. Be2 {[%emt 1:57:14]} Qa5 {[%emt 1:57:39]} 5. Bd2 {[%emt 1:53:48]} Qc7 {[%emt 1:53:48]} 6. f4 {[%emt 1:51:18]} e5 {[%emt 1:49:26]} 7. fxe5 {[%emt 1:49:54]} dxe5 {[%emt 1:49:20]} 8. dxe5 {[%emt 1:49:14]} Qxe5 {[%emt 1:49:14]} 9. Nf3 {[%emt 1:47:29]} Qc7 {[%emt 1:47:29]} 10. Bg5 {[%emt 1:41:11]} Nbd7 {[%emt 1:41:11]} 11. Qd2 {[%emt 1:37:45]} Bb4 {[%emt 1:09:06]} 12. O-O-O {[%emt 1:33:21]} O-O {[%emt 1:33:21]} 13. Bd3 {[%emt 1:28:57]} Qa5 {[%emt 0:59:19]} 14. Rhe1 {[%emt 1:22:00]} Ng4 {[%emt 0:50:25]} 15. a3 {[%emt 1:05:14]} Bxc3 {[%emt 0:43:13]} 16. Qxc3 {[%emt 0:43:13]} Qxc3 {[%emt 0:43:00]} 17. bxc3 {[%emt 1:05:01]} Nf2 {[%emt 0:35:22]} 18. Rd2 {[%emt 1:04:16]} Nxd3+ {[%emt 0:35:13]} 19. cxd3 {[%emt 1:03:56]} Nc5 {[%emt 0:34:29]} 20. Kc2 {[%emt 0:56:44]} Re8 {[%emt 0:32:51]} 21. Be3 {[%emt 0:50:27]} Nd7 {[%emt 0:29:35]} 22. Rh1 Z0 23. Kc1 Z0 24. Ng1 Z0 25. e5 1/2-1/2

[Event "30th NATO Chess-ch 2019"]
[Site "Berlin"]
[Date "2019.09.19"]
[Round "5.29"]
[White "Parker, Glen D"]
[Black "Christen, Peter"]
[Result "1-0"]
[ECO "B12"]
[WhiteElo "2014"]
[BlackElo "2153"]
[Annotator "ChessBase"]
[PlyCount "56"]
[EventDate "2019.09.16"]
[EventType "swiss"]
[EventCountry "GER"]
[SourceTitle "playchess.com"]
[Source "ChessBase"]
[SourceQuality "1"]
[TimeControl "40/7200:1800"]

1. e4 {[%emt 1:54:27]} c6 {[%emt 1:59:49]} 2. d4 {[%emt 1:53:42]} d5 {[%emt 1:53:42]} 3. e5 {[%emt 1:59:38]} Bf5 {[%emt 1:59:26]} 4. g4 {[%emt 1:51:59]} Be4 {[%emt 1:59:03]} 5. Nf3 {[%emt 1:59:03]} e6 {[%emt 1:58:19]} 6. Bd3 {[%emt 1:44:36]} c5 {[%emt 1:53:10]} 7. dxc5 {[%emt 1:53:10]} Nc6 {[%emt 1:48:54]} 8. Be3 {[%emt 1:23:21]} Qa5+ {[%emt 1:42:35]} 9. c3 {[%emt 1:12:14]} Bxf3 {[%emt 1:32:10]} 10. Qxf3 {[%emt 1:12:05]} Nxe5 {[%emt 1:31:57]} 11. Qe2 {[%emt 1:11:36]} Nxd3+ {[%emt 1:11:36]} 12. Qxd3 {[%emt 1:11:26]} Nf6 {[%emt 1:26:11]} 13. b4 {[%emt 1:08:43]} Qc7 {[%emt 1:25:02]} 14. g5 {[%emt 1:25:02]} Nd7 {[%emt 1:23:38]} 15. Nd2 {[%emt 0:55:45]} Rc8 {[%emt 1:19:23]} 16. Nb3 {[%emt 1:19:23]} b6 {[%emt 1:18:22]} 17. cxb6 {[%emt 0:40:17]} axb6 {[%emt 1:17:59]} 18. Rc1 {[%emt 0:39:31]} Ne5 {[%emt 0:39:31]} 19. Qb5+ {[%emt 0:38:51]} Nd7 {[%emt 1:03:25]} 20. a4 {[%emt 0:35:26]} Bd6 {[%emt 0:57:15]} 21. c4 {[%emt 0:57:15]} Qb7 {[%emt 0:55:35]} 22. c5 {[%emt 0:29:47]} O-O {[%emt 0:49:16]} 23. c6 {[%emt 0:27:35]} Rxc6 {[%emt 0:47:18]} 24. Rxc6 {[%emt 0:26:41]} Bxb4+ {[%emt 0:46:35]} 25. Ke2 {[%emt 0:26:18]} d4 {[%emt 0:45:46]} 26. Nxd4 {[%emt 0:25:56]} Bc5 {[%emt 0:45:14]} 27. Rc1 {[%emt 0:25:30]} Ne5 {[%emt 0:25:30]} 28. R6xc5 {[%emt 0:24:54]} Nd7 1-0

[Event "30th NATO Chess-ch 2019"]
[Site "Berlin"]
[Date "2019.09.19"]
[Round "5.30"]
[White "Simard, Francois"]
[Black "Cirkvencic, Franci"]
[Result "1-0"]
[ECO "A46"]
[WhiteElo "1755"]
[BlackElo "2008"]
[Annotator "NA"]
[PlyCount "93"]
[EventDate "2019.09.16"]
[EventType "swiss"]
[EventCountry "GER"]
[SourceTitle "playchess.com"]
[Source "ChessBase"]
[SourceQuality "1"]
[TimeControl "40/7200:1800"]

1. d4 {[%emt 1:59:43]} Nf6 {[%emt 1:59:48]} 2. Nf3 {[%emt 1:59:03]} e6 {[%emt 1:59:03]} 3. Bg5 {[%emt 1:58:13]} h6 {[%emt 1:59:28]} 4. Bh4 {[%emt 1:58:03]} c5 {[%emt 1:58:34]} 5. e3 {[%emt 1:58:34]} Be7 {[%emt 1:55:44]} 6. Bd3 {[%emt 1:54:25]} b6 {[%emt 1:56:14]} 7. c3 {[%emt 1:53:27]} Ba6 {[%emt 1:55:34]} 8. O-O {[%emt 1:55:34]} O-O {[%emt 1:52:59]} 9. Qe2 {[%emt 1:51:37]} Bxd3 {[%emt 1:51:37]} 10. Qxd3 {[%emt 1:50:22]} cxd4 {[%emt 1:50:22]} 11. cxd4 {[%emt 1:48:16]} d5 {[%emt 1:46:08]} 12. Ne5 {[%emt 1:45:11]} Ne4 {[%emt 1:45:11]} 13. Bxe7 {[%emt 1:43:50]} Qxe7 {[%emt 1:43:11]} 14. Nd2 {[%emt 1:42:43]} Nxd2 {[%emt 1:42:33]} 15. Qxd2 {[%emt 1:42:38]} Nd7 {[%emt 1:41:19]} 16. Nxd7 {[%emt 1:41:57]} Qxd7 {[%emt 1:41:57]} 17. Rfc1 {[%emt 1:41:43]} Rfc8 {[%emt 1:40:27]} 18. Rxc8+ {[%emt 1:41:38]} Rxc8 {[%emt 1:40:22]} 19. Rc1 {[%emt 1:41:33]} Rc6 {[%emt 1:41:33]} 20. a3 {[%emt 1:35:18]} Qc7 {[%emt 1:31:43]} 21. Rxc6 {[%emt 1:31:41]} Qxc6 {[%emt 1:31:41]} 22. g3 {[%emt 1:06:45]} Qc4 {[%emt 1:06:45]} 23. Kg2 {[%emt 1:05:33]} a5 {[%emt 1:26:13]} 24. Kf3 {[%emt 1:26:13]} Kf8 {[%emt 1:24:04]} 25. Qe2 {[%emt 1:04:50]} b5 {[%emt 1:15:27]} 26. Qd1 {[%emt 1:15:27]} Ke7 {[%emt 1:11:21]} 27. b3 {[%emt 0:56:44]} Qc3 {[%emt 1:10:39]} 28. a4 {[%emt 0:56:10]} bxa4 {[%emt 1:00:44]} 29. bxa4 {[%emt 0:56:03]} Qc4 {[%emt 0:56:03]} 30. Qa1 {[%emt 1:00:21]} Kd6 {[%emt 0:54:19]} 31. Qa3+ {[%emt 0:52:39]} Qb4 {[%emt 0:52:39]} 32. Qxb4+ {[%emt 0:52:24]} axb4 {[%emt 0:51:02]} 33. Ke2 {[%emt 0:51:02]} Kc6 {[%emt 0:49:45]} 34. Kd2 {[%emt 0:52:09]} Kb6 {[%emt 0:49:12]} 35. Kc2 {[%emt 0:52:02]} g5 {[%emt 0:45:47]} 36. Kb3 {[%emt 0:45:47]} Ka5 {[%emt 0:45:38]} 37. g4 {[%emt 0:50:18]} f6 {[%emt 0:50:18]} 38. f3 {[%emt 0:48:50]} f5 {[%emt 0:34:54]} 39. h3 {[%emt 0:34:54]} f4 {[%emt 0:33:40]} 40. exf4 {[%emt 0:47:38]} gxf4 {[%emt 0:33:38]} 41. h4 {[%emt 0:47:23]} e5 {[%emt 0:47:23]} 42. dxe5 {[%emt 0:46:55]} d4 {[%emt 0:33:29]} 43. e6 {[%emt 0:46:46]} d3 {[%emt 0:33:26]} 44. e7 {[%emt 0:46:42]} d2 {[%emt 0:33:21]} 45. Kc2 {[%emt 0:46:40]} Kxa4 {[%emt 0:46:40]} 46. e8=Q+ {[%emt 0:33:14]} Ka3 {[%emt 0:33:12]} 47. Qa8# 1-0

[Event "30th NATO Chess-ch 2019"]
[Site "Berlin"]
[Date "2019.09.19"]
[Round "6.1"]
[White "Papasimakopoulos, Alexandros"]
[Black "Everett, Elijah"]
[Result "0-1"]
[ECO "E84"]
[WhiteElo "2218"]
[BlackElo "2187"]
[Annotator "NA"]
[PlyCount "70"]
[EventDate "2019.09.16"]
[EventType "swiss"]
[EventCountry "GER"]
[SourceTitle "playchess.com"]
[Source "ChessBase"]
[SourceQuality "1"]
[TimeControl "40/7200:1800"]

1. d4 {[%emt 1:59:44]} Nf6 {[%emt 1:59:53]} 2. c4 {[%emt 1:59:28]} g6 {[%emt 1:59:47]} 3. Nc3 {[%emt 1:59:24]} Bg7 {[%emt 1:59:24]} 4. e4 {[%emt 1:59:20]} O-O {[%emt 1:59:20]} 5. f3 {[%emt 1:59:30]} d6 {[%emt 1:59:13]} 6. Nge2 {[%emt 1:59:05]} Nc6 {[%emt 1:59:05]} 7. Be3 {[%emt 1:59:01]} a6 {[%emt 1:58:59]} 8. Qd2 {[%emt 1:58:51]} Rb8 {[%emt 1:58:47]} 9. h4 {[%emt 1:58:22]} h5 {[%emt 1:58:22]} 10. Nc1 {[%emt 1:56:40]} e5 {[%emt 1:57:19]} 11. d5 {[%emt 1:57:19]} Nd4 {[%emt 1:56:36]} 12. Nb3 {[%emt 1:57:08]} c5 {[%emt 1:56:15]} 13. dxc6 bxc6 {[%emt 1:56:19]} 14. Nxd4 {[%emt 1:56:07]} exd4 {[%emt 1:56:07]} 15. Bxd4 {[%emt 1:55:53]} Re8 {[%emt 1:56:03]} 16. O-O-O {[%emt 1:54:37]} Qa5 {[%emt 1:43:14]} 17. Qc2 {[%emt 1:43:14]} Be6 {[%emt 1:20:23]} 18. Qa4 {[%emt 1:20:23]} Qc7 {[%emt 1:17:22]} 19. c5 {[%emt 1:32:54]} dxc5 {[%emt 1:11:14]} 20. Bxc5 {[%emt 1:32:38]} Qf4+ {[%emt 1:10:06]} 21. Kc2 {[%emt 1:10:06]} Nd5 {[%emt 1:31:34]} 22. Rd3 {[%emt 0:53:52]} Rxb2+ {[%emt 0:56:56]} 23. Kxb2 {[%emt 0:53:06]} Nxc3 {[%emt 0:56:38]} 24. Qxc6 {[%emt 0:41:45]} Ne2+ {[%emt 0:46:30]} 25. Ka3 {[%emt 0:37:27]} Qc1+ {[%emt 0:46:04]} 26. Ka4 {[%emt 0:35:23]} Qc4+ {[%emt 0:45:51]} 27. Ka5 {[%emt 0:34:59]} Rc8 {[%emt 0:34:59]} 28. Bxe2 {[%emt 0:33:18]} Qxa2+ {[%emt 0:33:18]} 29. Ra3 {[%emt 0:32:46]} Bc3+ {[%emt 0:40:53]} 30. Kb6 {[%emt 0:29:35]} Qb2+ {[%emt 0:40:13]} 31. Rb3 {[%emt 0:28:46]} Qxb3+ {[%emt 0:39:58]} 32. Bb4 {[%emt 0:28:44]} Qxb4+ {[%emt 0:28:44]} 33. Qb5 {[%emt 0:28:42]} Qd6+ {[%emt 0:38:55]} 34. Qc6 {[%emt 0:38:55]} Qxc6+ {[%emt 0:38:41]} 35. Ka7 {[%emt 0:28:34]} Ra8# {[%emt 0:38:32]} 0-1

[Event "30th NATO Chess-ch 2019"]
[Site "Berlin"]
[Date "2019.09.19"]
[Round "6.2"]
[White "Wang, Eigen"]
[Black "Wantiez, Fabrice"]
[Result "1/2-1/2"]
[ECO "C45"]
[WhiteElo "2193"]
[BlackElo "2225"]
[Annotator "NA"]
[PlyCount "71"]
[EventDate "2019.09.16"]
[EventType "swiss"]
[EventCountry "GER"]
[SourceTitle "playchess.com"]
[Source "ChessBase"]
[SourceQuality "1"]
[TimeControl "40/7200:1800"]

1. e4 {[%emt 1:59:55]} e5 {[%emt 1:59:52]} 2. Nf3 {[%emt 1:59:50]} Nc6 {[%emt 1:59:46]} 3. d4 {[%emt 1:59:45]} exd4 {[%emt 1:59:41]} 4. Nxd4 {[%emt 1:59:40]} Bb4+ {[%emt 1:59:32]} 5. c3 {[%emt 1:59:32]} Bc5 {[%emt 1:59:10]} 6. Be3 {[%emt 1:58:51]} Bb6 {[%emt 1:59:17]} 7. Nf5 {[%emt 1:59:17]} Bxe3 {[%emt 1:59:08]} 8. Nxe3 {[%emt 1:59:08]} d6 {[%emt 1:58:33]} 9. Bc4 {[%emt 1:53:21]} Nf6 {[%emt 1:58:20]} 10. O-O {[%emt 1:58:20]} O-O {[%emt 1:58:13]} 11. Nd2 {[%emt 1:58:13]} Re8 {[%emt 1:57:53]} 12. Bb3 {[%emt 1:47:25]} Nxe4 {[%emt 1:52:31]} 13. Nxe4 {[%emt 1:44:05]} Rxe4 {[%emt 1:51:39]} 14. Bxf7+ {[%emt 1:51:39]} Kh8 {[%emt 1:43:24]} 15. Qf3 {[%emt 1:40:41]} Re5 {[%emt 1:37:22]} 16. Bb3 {[%emt 1:34:16]} Be6 {[%emt 1:30:29]} 17. Ng4 {[%emt 1:30:29]} Bxb3 {[%emt 1:29:01]} 18. axb3 {[%emt 1:27:43]} Re7 {[%emt 1:28:14]} 19. b4 {[%emt 1:24:58]} a6 {[%emt 1:27:19]} 20. Rfe1 {[%emt 1:19:24]} Qe8 {[%emt 1:21:54]} 21. Re3 {[%emt 1:13:30]} Rxe3 {[%emt 1:21:14]} 22. Nxe3 {[%emt 1:13:08]} Rb8 {[%emt 1:13:08]} 23. Nd5 {[%emt 1:09:31]} Ne5 {[%emt 1:17:03]} 24. Qe4 {[%emt 1:06:21]} c6 {[%emt 1:06:21]} 25. Ne3 {[%emt 1:16:32]} d5 {[%emt 1:16:05]} 26. Qd4 {[%emt 1:04:46]} Nd7 {[%emt 1:02:28]} 27. Re1 {[%emt 0:54:04]} Nf6 {[%emt 1:02:15]} 28. Qf4 {[%emt 0:50:56]} Rd8 {[%emt 0:50:56]} 29. Kf1 {[%emt 0:45:21]} Qe4 {[%emt 0:50:47]} 30. Qxe4 {[%emt 0:40:33]} Nxe4 {[%emt 0:40:33]} 31. f3 {[%emt 0:50:39]} Nd6 {[%emt 0:50:00]} 32. Nc2 {[%emt 0:50:00]} Rd7 {[%emt 0:36:11]} 33. Nd4 {[%emt 0:47:25]} Kg8 {[%emt 0:45:51]} 34. Nb3 {[%emt 0:29:41]} Kf7 {[%emt 0:42:24]} 35. Nc5 {[%emt 0:42:24]} Rd8 {[%emt 0:42:00]} 36. h4 {[%emt 0:42:00]} 1/2-1/2

[Event "30th NATO Chess-ch 2019"]
[Site "Berlin"]
[Date "2019.09.19"]
[Round "6.3"]
[White "Pavlidis, Antonios"]
[Black "Casteleijn, Diederick"]
[Result "1-0"]
[ECO "B06"]
[WhiteElo "2550"]
[BlackElo "2079"]
[Annotator "ChessBase"]
[PlyCount "77"]
[EventDate "2019.09.16"]
[EventType "swiss"]
[EventCountry "GER"]
[SourceTitle "playchess.com"]
[Source "ChessBase"]
[SourceQuality "1"]
[TimeControl "40/7200:1800"]

1. d4 {[%emt 2:00:00]} g6 {[%emt 1:59:46]} 2. e4 {[%emt 1:59:23]} Bg7 {[%emt 1:59:39]} 3. Nc3 {[%emt 1:59:39]} d6 {[%emt 1:58:34]} 4. Nf3 {[%emt 1:59:16]} a6 {[%emt 1:58:17]} 5. Be3 {[%emt 1:58:17]} b5 {[%emt 1:56:51]} 6. Bd3 {[%emt 1:30:28]} Bb7 {[%emt 1:30:28]} 7. a4 {[%emt 1:27:55]} b4 {[%emt 1:51:30]} 8. Nb1 {[%emt 1:23:08]} Nd7 {[%emt 1:45:26]} 9. Nbd2 {[%emt 1:21:38]} Ngf6 {[%emt 1:43:09]} 10. h3 {[%emt 1:18:28]} a5 {[%emt 1:34:59]} 11. O-O {[%emt 1:16:03]} O-O {[%emt 1:16:03]} 12. Qe2 {[%emt 1:04:38]} h6 {[%emt 1:04:38]} 13. e5 {[%emt 0:52:55]} Nd5 {[%emt 1:06:52]} 14. e6 {[%emt 0:51:58]} f5 {[%emt 0:51:58]} 15. exd7 {[%emt 0:37:08]} f4 {[%emt 0:37:08]} 16. Bxg6 {[%emt 0:31:06]} Qxd7 {[%emt 0:31:06]} 17. Bd3 {[%emt 0:29:40]} fxe3 {[%emt 0:38:12]} 18. fxe3 {[%emt 0:38:12]} c5 {[%emt 0:37:45]} 19. Nb3 {[%emt 0:18:54]} Nb6 {[%emt 0:30:46]} 20. dxc5 {[%emt 0:17:32]} Nxa4 {[%emt 0:29:19]} 21. Bb5 {[%emt 0:15:59]} Bc6 {[%emt 0:28:57]} 22. Bxc6 {[%emt 0:15:46]} Qxc6 {[%emt 0:28:54]} 23. Nfd4 {[%emt 0:28:54]} Rxf1+ {[%emt 0:26:01]} 24. Qxf1 {[%emt 0:12:22]} Qe8 {[%emt 0:12:22]} 25. c6 {[%emt 0:11:06]} Nxb2 {[%emt 0:22:39]} 26. Qb5 {[%emt 0:08:46]} e5 {[%emt 0:21:05]} 27. Nf5 {[%emt 0:07:01]} a4 {[%emt 0:20:32]} 28. Nxd6 {[%emt 0:04:49]} Qe6 {[%emt 0:04:49]} 29. Ne4 {[%emt 0:03:32]} Rc8 {[%emt 0:12:24]} 30. Na5 {[%emt 0:12:24]} Bf8 {[%emt 0:11:21]} 31. Qb7 {[%emt 0:03:13]} Be7 {[%emt 0:10:29]} 32. Rf1 {[%emt 0:02:32]} a3 {[%emt 0:08:54]} 33. Nf6+ {[%emt 0:02:23]} Bxf6 {[%emt 0:02:23]} 34. Rxf6 {[%emt 0:02:19]} Qxf6 {[%emt 0:02:19]} 35. Qxc8+ {[%emt 0:02:17]} Kf7 {[%emt 0:03:52]} 36. c7 {[%emt 0:01:37]} a2 {[%emt 0:02:20]} 37. Nb3 {[%emt 0:01:32]} Qg5 {[%emt 0:01:32]} 38. Qd7+ {[%emt 0:00:58]} Kg6 {[%emt 0:00:37]} 39. Qg4 {[%emt 0:00:37]} 1-0

[Event "30th NATO Chess-ch 2019"]
[Site "Berlin"]
[Date "2019.09.19"]
[Round "6.4"]
[White "Graczyk, Damian"]
[Black "Binder, Tamas"]
[Result "1-0"]
[ECO "D11"]
[WhiteElo "2133"]
[BlackElo "2261"]
[Annotator "ChessBase"]
[PlyCount "35"]
[EventDate "2019.09.16"]
[EventType "swiss"]
[EventCountry "GER"]
[SourceTitle "playchess.com"]
[Source "ChessBase"]
[SourceQuality "1"]
[TimeControl "40/7200:1800"]

1. d4 {[%emt 2:00:00]} d5 {[%emt 1:59:54]} 2. Nf3 {[%emt 1:59:45]} c6 {[%emt 1:59:49]} 3. c4 {[%emt 1:59:31]} dxc4 {[%emt 1:59:38]} 4. a4 {[%emt 1:58:35]} e6 {[%emt 1:58:58]} 5. e3 {[%emt 6:08:02]} Bb4+ {[%emt 1:55:29]} 6. Bd2 {[%emt 1:54:24]} Bxd2+ {[%emt 1:53:10]} 7. Qxd2 {[%emt 1:54:56]} b5 {[%emt 1:52:05]} 8. b3 {[%emt 1:53:41]} cxb3 {[%emt 1:53:41]} 9. axb5 {[%emt 1:53:33]} cxb5 {[%emt 1:51:16]} 10. Bxb5+ {[%emt 1:51:16]} Bd7 {[%emt 1:47:42]} 11. Qb4 {[%emt 1:46:15]} Qb6 {[%emt 1:46:15]} 12. Nc3 {[%emt 1:43:46]} a6 {[%emt 1:46:47]} 13. Ne5 {[%emt 1:35:47]} Nc6 {[%emt 1:37:48]} 14. Nxd7 {[%emt 1:30:53]} Kxd7 {[%emt 1:37:36]} 15. d5 {[%emt 1:29:20]} exd5 {[%emt 1:36:04]} 16. Nxd5 {[%emt 1:28:40]} Qb7 {[%emt 1:35:24]} 17. Bxc6+ {[%emt 1:35:24]} Qxc6 {[%emt 1:27:05]} 18. Nb6+ {[%emt 1:23:27]} 1-0